[Event "FIDE Women World Blitz 2021"]
[Site "Warsaw"]
[Date "2021.12.29"]
[Round "8.7"]
[White "Malicka, Maria"]
[Black "Kolaric, Spela"]
[Result "1-0"]
[ECO "C54"]
[WhiteElo "2307"]
[BlackElo "2178"]
[Annotator "NA"]
[PlyCount "115"]
[EventDate "2021.12.29"]
[EventType "swiss"]
[EventCountry "POL"]
[Tiebreak "Cut1 Buchholz"]
[SourceTitle "playchess.com"]
[Source "ChessBase"]
[SourceQuality "1"]
[TimeControl "180+2"]

1. e4 {[%emt 0:00:01]} e5 {[%emt 0:00:01]} 2. Nf3 {[%emt 0:00:01]} Nc6 {
[%emt 0:00:02]} 3. Bc4 {[%emt 0:00:02]} Nf6 {[%emt 0:00:01]} 4. d3 {[%emt 0:00:
01]} Bc5 {[%emt 0:00:02]} 5. c3 {[%emt 0:00:03]} O-O {[%emt 0:00:02]} 6. O-O {
[%emt 0:00:03]} d5 {[%emt 0:00:01]} 7. exd5 Nxd5 {[%emt 0:00:01]} 8. Nbd2 {
[%emt 0:00:09]} Nb6 {[%emt 0:00:02]} 9. b4 {[%emt 0:00:12]} Be7 {[%emt 0:00:06]
} 10. Re1 {[%emt 0:00:14]} Bf6 {[%emt 0:00:08]} 11. a4 {[%emt 0:00:21]} Bf5 {
[%emt 0:00:24]} 12. Bb5 {[%emt 0:01:14]} Bxd3 {[%emt 0:00:31]} 13. Bxc6 {
[%emt 0:00:02]} bxc6 {[%emt 0:00:01]} 14. Nxe5 {[%emt 0:00:02]} Bf5 {[%emt 0:
00:19]} 15. Ndf3 {[%emt 0:00:13]} Bxe5 {[%emt 0:00:20]} 16. Nxe5 {[%emt 0:00:
02]} Qf6 {[%emt 0:00:01]} 17. Bf4 {[%emt 0:00:23]} Rad8 {[%emt 0:00:01]} 18.
Qf3 {[%emt 0:00:04]} Nd5 {[%emt 0:00:02]} 19. Bg3 {[%emt 0:00:04]} Rfe8 {
[%emt 0:00:08]} 20. Rad1 {[%emt 0:00:01]} h6 {[%emt 0:00:14]} 21. h3 {[%emt 0:
00:01]} Rb8 {[%emt 0:00:23]} 22. a5 {[%emt 0:00:12]} Bc2 {[%emt 0:00:20]} 23.
Rc1 {[%emt 0:00:03]} Qxf3 {[%emt 0:00:01]} 24. Nxf3 {[%emt 0:00:03]} Rxe1+ {
[%emt 0:00:09]} 25. Nxe1 {[%emt 0:00:01]} Bg6 {[%emt 0:00:01]} 26. c4 {[%emt 0:
00:08]} Nxb4 {[%emt 0:00:02]} 27. Bxc7 {[%emt 0:00:01]} Rc8 {[%emt 0:00:01]}
28. Bd6 {[%emt 0:00:02]} Nd3 {[%emt 0:00:03]} 29. Nxd3 {[%emt 0:00:01]} Bxd3 {
[%emt 0:00:01]} 30. c5 {[%emt 0:00:01]} Bb5 {[%emt 0:00:01]} 31. Re1 {[%emt 0:
00:02]} a6 {[%emt 0:00:01]} 32. Re7 {[%emt 0:00:01]} f6 {[%emt 0:00:09]} 33. g3
{[%emt 0:00:04]} Kh7 {[%emt 0:00:01]} 34. Kg2 {[%emt 0:00:02]} Kg6 {[%emt 0:00:
00]} 35. h4 {[%emt 0:00:01]} h5 {[%emt 0:00:01]} 36. Kf3 {[%emt 0:00:02]} Bc4 {
[%emt 0:00:02]} 37. Ra7 {[%emt 0:00:02]} Re8 {[%emt 0:00:02]} 38. Re7 {[%emt 0:
00:02]} Bd5+ {[%emt 0:00:02]} 39. Ke3 {[%emt 0:00:02]} Rc8 {[%emt 0:00:00]} 40.
Kd4 {[%emt 0:00:06]} Bf3 {[%emt 0:00:05]} 41. Re3 {[%emt 0:00:02]} Bg2 {
[%emt 0:00:02]} 42. Rb3 {[%emt 0:00:02]} Bf1 {[%emt 0:00:02]} 43. Rb6 {[%emt 0:
00:02]} Bb5 {[%emt 0:00:02]} 44. Rb7 {[%emt 0:00:01]} Re8 {[%emt 0:00:01]} 45.
Re7 {[%emt 0:00:01]} Rc8 46. Rb7 {[%emt 0:00:02]} Re8 {[%emt 0:00:03]} 47. Re7
{[%emt 0:00:01]} Rxe7 {[%emt 0:00:01]} 48. Bxe7 {[%emt 0:00:01]} Kf5 {[%emt 0:
00:00]} 49. Bf8 {[%emt 0:00:03]} g5 {[%emt 0:00:01]} 50. hxg5 {[%emt 0:00:07]}
fxg5 {[%emt 0:00:01]} 51. Be7 {[%emt 0:00:02]} Kg4 {[%emt 0:00:01]} 52. Ke3 {
[%emt 0:00:01]} h4 {[%emt 0:00:13]} 53. gxh4 {[%emt 0:00:01]} gxh4 {[%emt 0:00:
01]} 54. Bd6 {[%emt 0:00:05]} h3 {[%emt 0:00:02]} 55. Bc7 {[%emt 0:00:02]} Ba4
{[%emt 0:00:03]} 56. Bb8 {[%emt 0:00:01]} Bb5 {[%emt 0:00:01]} 57. Bc7 {
[%emt 0:00:01]} Ba4 {[%emt 0:00:01]} 58. Bb8 {[%emt 0:00:01]} 1-0

[Event "FIDE Women World Blitz 2021"]
[Site "Warsaw"]
[Date "2021.12.29"]
[Round "8.8"]
[White "Bivol, Alina"]
[Black "Mammadova, Gulnar"]
[Result "1-0"]
[ECO "C18"]
[WhiteElo "2377"]
[BlackElo "2395"]
[Annotator "NA"]
[PlyCount "111"]
[EventDate "2021.12.29"]
[EventType "swiss"]
[EventCountry "POL"]
[Tiebreak "Cut1 Buchholz"]
[SourceTitle "playchess.com"]
[Source "ChessBase"]
[SourceQuality "1"]
[TimeControl "180+2"]

1. e4 {[%emt 0:00:01]} e6 {[%emt 0:00:01]} 2. d4 {[%emt 0:00:01]} d5 {[%emt 0:
00:00]} 3. Nc3 {[%emt 0:00:01]} Bb4 {[%emt 0:00:01]} 4. e5 {[%emt 0:00:01]} c5
{[%emt 0:00:01]} 5. a3 {[%emt 0:00:01]} Ba5 {[%emt 0:00:01]} 6. b4 {[%emt 0:00:
08]} cxd4 {[%emt 0:00:03]} 7. Nb5 {[%emt 0:00:04]} Bc7 {[%emt 0:00:02]} 8. f4 {
[%emt 0:00:01]} Bd7 {[%emt 0:00:01]} 9. Nxc7+ {[%emt 0:00:02]} Qxc7 {[%emt 0:
00:03]} 10. Nf3 {[%emt 0:00:02]} Ba4 {[%emt 0:00:12]} 11. Bd3 {[%emt 0:00:03]}
Ne7 {[%emt 0:00:29]} 12. O-O {[%emt 0:00:03]} a6 {[%emt 0:00:04]} 13. Qe2 {
[%emt 0:00:08]} Nbc6 {[%emt 0:00:05]} 14. Bb2 {[%emt 0:00:05]} Qb6 {[%emt 0:00:
02]} 15. Qf2 {[%emt 0:00:14]} Bb5 {[%emt 0:00:13]} 16. Bxd4 {[%emt 0:00:15]}
Nxd4 {[%emt 0:00:05]} 17. Qxd4 {[%emt 0:00:09]} Qxd4+ {[%emt 0:00:02]} 18. Nxd4
{[%emt 0:00:01]} Bxd3 {[%emt 0:00:11]} 19. cxd3 {[%emt 0:00:01]} g6 {[%emt 0:
00:10]} 20. Rac1 {[%emt 0:00:14]} Kd7 {[%emt 0:00:05]} 21. Kf2 {[%emt 0:00:05]}
Rac8 {[%emt 0:00:03]} 22. Ke3 {[%emt 0:00:19]} h5 {[%emt 0:00:07]} 23. h3 {
[%emt 0:00:11]} h4 {[%emt 0:00:23]} 24. a4 {[%emt 0:00:01]} Rxc1 {[%emt 0:00:
07]} 25. Rxc1 {[%emt 0:00:01]} Rc8 {[%emt 0:00:01]} 26. Rxc8 {[%emt 0:00:08]}
Kxc8 {[%emt 0:00:14]} 27. Kf3 {[%emt 0:00:35]} Kc7 {[%emt 0:00:01]} 28. Kg4 {
[%emt 0:00:08]} Nc6 {[%emt 0:00:32]} 29. Nc2 {[%emt 0:00:09]} Kb6 {[%emt 0:00:
17]} 30. Kxh4 {[%emt 0:00:03]} a5 {[%emt 0:00:01]} 31. b5 {[%emt 0:00:16]} Nb4
{[%emt 0:00:00]} 32. Ne1 {[%emt 0:00:07]} Kc5 {[%emt 0:00:03]} 33. Kg5 {
[%emt 0:00:01]} d4 {[%emt 0:00:09]} 34. g4 {[%emt 0:00:01]} Nd5 {[%emt 0:00:02]
} 35. h4 {[%emt 0:00:02]} Kb4 {[%emt 0:00:05]} 36. h5 {[%emt 0:00:01]} gxh5 {
[%emt 0:00:02]} 37. gxh5 {[%emt 0:00:01]} Ne7 {[%emt 0:00:07]} 38. Kf6 {
[%emt 0:00:04]} Nf5 {[%emt 0:00:00]} 39. Kxf7 {[%emt 0:00:02]} Kxa4 {[%emt 0:
00:02]} 40. Kxe6 {[%emt 0:00:02]} Ng7+ {[%emt 0:00:00]} 41. Kf6 {[%emt 0:00:02]
} Nxh5+ {[%emt 0:00:01]} 42. Kg5 {[%emt 0:00:01]} Ng7 {[%emt 0:00:01]} 43. f5 {
[%emt 0:00:01]} Kb3 {[%emt 0:00:02]} 44. f6 {[%emt 0:00:02]} Ne6+ {[%emt 0:00:
01]} 45. Kf5 {[%emt 0:00:01]} a4 {[%emt 0:00:02]} 46. Kxe6 {[%emt 0:00:03]} a3
{[%emt 0:00:00]} 47. f7 {[%emt 0:00:00]} a2 {[%emt 0:00:01]} 48. f8=Q {[%emt 0:
00:03]} a1=Q {[%emt 0:00:01]} 49. Nf3 {[%emt 0:00:01]} Qc3 {[%emt 0:00:16]} 50.
Qd6 {[%emt 0:00:03]} Qxd3 {[%emt 0:00:05]} 51. Nxd4+ {[%emt 0:00:02]} Kc3 {
[%emt 0:00:03]} 52. Qc5+ {[%emt 0:00:03]} Kd2 {[%emt 0:00:02]} 53. Kd6 {
[%emt 0:00:04]} Qg3 {[%emt 0:00:02]} 54. Nf5 {[%emt 0:00:04]} Qg6+ {[%emt 0:00:
01]} 55. e6 {[%emt 0:00:01]} Qg2 {[%emt 0:00:04]} 56. Qd5+ {[%emt 0:00:01]} 1-0

[Event "FIDE Women World Blitz 2021"]
[Site "Warsaw"]
[Date "2021.12.29"]
[Round "8.8"]
[White "Jakubowska, Anna"]
[Black "Zairbek kyzy, Begimai"]
[Result "1-0"]
[ECO "B12"]
[WhiteElo "2106"]
[BlackElo "1701"]
[Annotator "NA"]
[PlyCount "43"]
[EventDate "2021.12.29"]
[EventType "swiss"]
[EventCountry "POL"]
[Tiebreak "Cut1 Buchholz"]
[SourceTitle "playchess.com"]
[Source "ChessBase"]
[SourceQuality "1"]
[TimeControl "180+2"]

1. e4 {[%emt 0:00:01]} c6 {[%emt 0:00:00]} 2. d4 d5 3. e5 {[%emt 0:00:02]} Bf5
{[%emt 0:00:03]} 4. Nf3 {[%emt 0:00:01]} e6 {[%emt 0:00:00]} 5. Be2 {[%emt 0:
00:01]} c5 {[%emt 0:00:01]} 6. c3 {[%emt 0:00:04]} Nc6 {[%emt 0:00:01]} 7. O-O
{[%emt 0:00:02]} cxd4 {[%emt 0:00:01]} 8. cxd4 {[%emt 0:00:02]} Qb6 {[%emt 0:
00:12]} 9. Nc3 {[%emt 0:00:04]} Bg4 {[%emt 0:00:24]} 10. Na4 {[%emt 0:00:11]}
Qd8 {[%emt 0:00:05]} 11. Be3 {[%emt 0:00:09]} Nge7 {[%emt 0:00:02]} 12. Nh4 {
[%emt 0:00:19]} h5 {[%emt 0:00:46]} 13. Nc5 {[%emt 0:00:02]} b6 {[%emt 0:00:07]
} 14. Nb7 {[%emt 0:00:02]} Qc7 {[%emt 0:00:34]} 15. Nd6+ {[%emt 0:00:02]} Kd7 {
[%emt 0:00:01]} 16. Nxf7 {[%emt 0:00:08]} Rg8 {[%emt 0:00:20]} 17. Rc1 {
[%emt 0:00:04]} Qb7 {[%emt 0:00:27]} 18. Nd6 {[%emt 0:00:03]} Qb8 {[%emt 0:00:
01]} 19. f3 {[%emt 0:00:04]} Bf5 {[%emt 0:00:07]} 20. Nhxf5 {[%emt 0:00:02]}
Nxf5 {[%emt 0:00:04]} 21. Nxf5 {[%emt 0:00:03]} exf5 {[%emt 0:00:01]} 22. Bb5 {
[%emt 0:00:01]} 1-0

[Event "FIDE Women World Blitz 2021"]
[Site "Warsaw"]
[Date "2021.12.29"]
[Round "8.9"]
[White "Balajayeva, Khanim"]
[Black "Maltsevskaya, Aleksandra"]
[Result "0-1"]
[ECO "B22"]
[WhiteElo "2369"]
[BlackElo "2411"]
[Annotator "NA"]
[PlyCount "76"]
[EventDate "2021.12.29"]
[EventType "swiss"]
[EventCountry "POL"]
[Tiebreak "Cut1 Buchholz"]
[SourceTitle "playchess.com"]
[Source "ChessBase"]
[SourceQuality "1"]
[TimeControl "180+2"]

1. e4 {[%emt 0:00:01]} c5 {[%emt 0:00:01]} 2. c3 {[%emt 0:00:00]} g6 {[%emt 0:
00:06]} 3. d4 {[%emt 0:00:01]} cxd4 {[%emt 0:00:01]} 4. cxd4 {[%emt 0:00:01]}
d5 {[%emt 0:00:01]} 5. e5 {[%emt 0:00:02]} Bg7 {[%emt 0:00:04]} 6. Nc3 {
[%emt 0:00:00]} Nc6 {[%emt 0:00:03]} 7. h3 {[%emt 0:00:08]} Nh6 {[%emt 0:00:02]
} 8. g4 {[%emt 0:00:01]} f6 {[%emt 0:00:10]} 9. f4 {[%emt 0:00:01]} Nf7 {
[%emt 0:00:10]} 10. Bg2 {[%emt 0:00:02]} Be6 {[%emt 0:01:05]} 11. Nf3 {[%emt 0:
00:03]} Qb6 {[%emt 0:00:02]} 12. Qe2 {[%emt 0:01:33]} fxe5 {[%emt 0:00:25]} 13.
dxe5 {[%emt 0:00:14]} O-O {[%emt 0:00:11]} 14. Nd1 {[%emt 0:00:13]} d4 {
[%emt 0:00:22]} 15. Nf2 {[%emt 0:00:08]} Rad8 {[%emt 0:00:01]} 16. O-O {
[%emt 0:00:14]} Nb4 {[%emt 0:00:19]} 17. Rd1 {[%emt 0:00:13]} d3 {[%emt 0:00:
07]} 18. Qf1 {[%emt 0:00:11]} Nc2 {[%emt 0:00:09]} 19. Rb1 {[%emt 0:00:01]} Ne3
{[%emt 0:00:03]} 20. Bxe3 {[%emt 0:00:02]} Qxe3 {[%emt 0:00:01]} 21. Rd2 {
[%emt 0:00:05]} Qxf4 {[%emt 0:00:03]} 22. Nxd3 {[%emt 0:00:03]} Qe3+ {[%emt 0:
00:01]} 23. Qf2 {[%emt 0:00:13]} Rxd3 {[%emt 0:00:03]} 24. Rxd3 {[%emt 0:00:05]
} Qxd3 {[%emt 0:00:01]} 25. Re1 {[%emt 0:00:02]} Qa6 {[%emt 0:00:08]} 26. Qe3 {
[%emt 0:00:05]} Bd5 {[%emt 0:00:02]} 27. e6 {[%emt 0:00:02]} Nd6 {[%emt 0:00:
02]} 28. b3 {[%emt 0:00:03]} Bxf3 {[%emt 0:00:07]} 29. Bxf3 {[%emt 0:00:01]}
Qa5 {[%emt 0:00:01]} 30. Kg2 {[%emt 0:00:03]} Rc8 {[%emt 0:00:03]} 31. Re2 {
[%emt 0:00:02]} Qc5 {[%emt 0:00:02]} 32. Qd3 {[%emt 0:00:06]} Qd4 {[%emt 0:00:
01]} 33. Qb1 {[%emt 0:00:03]} Be5 {[%emt 0:00:02]} 34. Qe1 {[%emt 0:00:01]} Bf6
{[%emt 0:00:03]} 35. Rd2 {[%emt 0:00:01]} Qf4 {[%emt 0:00:02]} 36. Re2 {
[%emt 0:00:02]} Rc3 {[%emt 0:00:02]} 37. Qf1 {[%emt 0:00:04]} Be5 {[%emt 0:00:
03]} 38. Rf2 {[%emt 0:00:04]} Qh2# {[%emt 0:00:02]} 0-1

[Event "FIDE Women World Blitz 2021"]
[Site "Warsaw"]
[Date "2021.12.29"]
[Round "8.9"]
[White "Goraj, Barbara"]
[Black "Utiatskaja, Irina"]
[Result "0-1"]
[ECO "B81"]
[WhiteElo "1902"]
[BlackElo "2184"]
[Annotator "NA"]
[PlyCount "78"]
[EventDate "2021.12.29"]
[EventType "swiss"]
[EventCountry "POL"]
[Tiebreak "Cut1 Buchholz"]
[SourceTitle "playchess.com"]
[Source "ChessBase"]
[SourceQuality "1"]
[TimeControl "180+2"]

1. e4 {[%emt 0:00:01]} c5 {[%emt 0:00:03]} 2. Nf3 {[%emt 0:00:01]} d6 {[%emt 0:
00:01]} 3. d4 {[%emt 0:00:01]} cxd4 {[%emt 0:00:01]} 4. Nxd4 {[%emt 0:00:01]}
Nf6 {[%emt 0:00:02]} 5. Nc3 {[%emt 0:00:01]} a6 {[%emt 0:00:01]} 6. h3 {
[%emt 0:00:02]} e6 {[%emt 0:00:25]} 7. g4 {[%emt 0:00:02]} h6 {[%emt 0:00:01]}
8. Bg2 {[%emt 0:00:03]} g5 {[%emt 0:00:15]} 9. Be3 {[%emt 0:00:26]} Qc7 {
[%emt 0:00:03]} 10. h4 {[%emt 0:00:07]} Rg8 {[%emt 0:00:01]} 11. hxg5 {[%emt 0:
00:03]} hxg5 {[%emt 0:00:02]} 12. Qe2 {[%emt 0:00:12]} Nbd7 {[%emt 0:00:02]}
13. O-O-O {[%emt 0:00:31]} Ne5 {[%emt 0:00:02]} 14. f3 {[%emt 0:00:01]} Bd7 {
[%emt 0:00:16]} 15. Kb1 {[%emt 0:00:06]} b5 {[%emt 0:00:12]} 16. Qf2 {[%emt 0:
00:33]} Rc8 {[%emt 0:00:15]} 17. Bc1 {[%emt 0:00:12]} b4 {[%emt 0:00:17]} 18.
Nce2 {[%emt 0:00:02]} Bb5 {[%emt 0:00:14]} 19. b3 {[%emt 0:00:10]} Be7 {
[%emt 0:00:29]} 20. Bb2 {[%emt 0:00:04]} Ned7 {[%emt 0:00:04]} 21. Rc1 {
[%emt 0:00:05]} Qa7 {[%emt 0:00:21]} 22. Qe1 {[%emt 0:00:07]} d5 {[%emt 0:00:
06]} 23. Ng3 {[%emt 0:00:11]} dxe4 {[%emt 0:00:05]} 24. Nxe4 {[%emt 0:00:08]}
Nxe4 {[%emt 0:00:02]} 25. Qxe4 {[%emt 0:00:06]} Nf6 {[%emt 0:00:03]} 26. Qe5 {
[%emt 0:00:18]} Nd5 {[%emt 0:00:03]} 27. Rh8 {[%emt 0:00:10]} Kd7 {[%emt 0:00:
04]} 28. Rxg8 {[%emt 0:00:01]} Rxg8 {[%emt 0:00:01]} 29. Qe1 {[%emt 0:00:09]}
Rc8 {[%emt 0:00:02]} 30. Ka1 {[%emt 0:00:03]} Nc3 {[%emt 0:00:04]} 31. Ne2 {
[%emt 0:00:02]} Qc7 {[%emt 0:00:04]} 32. f4 {[%emt 0:00:03]} gxf4 {[%emt 0:00:
03]} 33. Qd2+ {[%emt 0:00:01]} Ke8 {[%emt 0:00:02]} 34. Rh1 {[%emt 0:00:03]}
Bxe2 {[%emt 0:00:04]} 35. Rh8+ {[%emt 0:00:01]} Bf8 {[%emt 0:00:00]} 36. g5 {
[%emt 0:00:03]} f3 {[%emt 0:00:01]} 37. Bh3 {[%emt 0:00:03]} Qg3 {[%emt 0:00:
05]} 38. Rxf8+ {[%emt 0:00:02]} Kxf8 {[%emt 0:00:01]} 39. g6 {[%emt 0:00:02]}
Qxh3 {[%emt 0:00:04]} 0-1

[Event "FIDE Women World Blitz 2021"]
[Site "Warsaw"]
[Date "2021.12.29"]
[Round "8.10"]
[White "Injac, Teodora"]
[Black "Stefanova, Antoaneta"]
[Result "0-1"]
[ECO "D11"]
[WhiteElo "2387"]
[BlackElo "2475"]
[Annotator "ChessBase"]
[PlyCount "127"]
[EventDate "2021.12.29"]
[EventType "swiss"]
[EventCountry "POL"]
[Tiebreak "Cut1 Buchholz"]
[SourceTitle "playchess.com"]
[Source "ChessBase"]
[SourceQuality "1"]
[TimeControl "180+2"]

1. d4 {[%emt 0:00:01]} d5 {[%emt 0:00:00]} 2. c4 {[%emt 0:00:02]} c6 {[%emt 0:
00:01]} 3. Nf3 {[%emt 0:00:01]} Nf6 {[%emt 0:00:01]} 4. Qc2 {[%emt 0:00:02]} g6
{[%emt 0:00:01]} 5. cxd5 {[%emt 0:00:02]} cxd5 {[%emt 0:00:03]} 6. Nc3 {
[%emt 0:00:01]} Nc6 {[%emt 0:00:05]} 7. Bf4 {[%emt 0:00:03]} Bf5 {[%emt 0:00:
19]} 8. Qb3 {[%emt 0:00:05]} Na5 {[%emt 0:00:03]} 9. Qa4+ {[%emt 0:00:08]} Bd7
{[%emt 0:00:02]} 10. Qd1 {[%emt 0:00:13]} Rc8 {[%emt 0:00:06]} 11. e3 {[%emt 0:
00:07]} Qb6 {[%emt 0:00:13]} 12. Rb1 {[%emt 0:00:18]} Bg7 {[%emt 0:00:09]} 13.
Ne5 {[%emt 0:00:13]} Bf5 {[%emt 0:00:40]} 14. Bb5+ {[%emt 0:00:10]} Nc6 {
[%emt 0:00:01]} 15. Nxc6 {[%emt 0:00:10]} bxc6 {[%emt 0:00:03]} 16. Bd3 {
[%emt 0:00:02]} Bxd3 17. Qxd3 {[%emt 0:00:01]} O-O {[%emt 0:00:15]} 18. O-O {
[%emt 0:00:04]} Nd7 {[%emt 0:00:04]} 19. Rfc1 {[%emt 0:00:12]} e5 {[%emt 0:00:
02]} 20. dxe5 {[%emt 0:00:02]} Nxe5 {[%emt 0:00:02]} 21. Bxe5 {[%emt 0:00:09]}
Bxe5 {[%emt 0:00:01]} 22. Na4 {[%emt 0:00:01]} Qb4 {[%emt 0:00:03]} 23. b3 {
[%emt 0:00:04]} Rc7 {[%emt 0:00:09]} 24. g3 {[%emt 0:00:06]} h5 {[%emt 0:00:08]
} 25. h4 {[%emt 0:00:01]} Bf6 {[%emt 0:00:03]} 26. Kg2 {[%emt 0:00:06]} Qg4 {
[%emt 0:00:03]} 27. Qd1 {[%emt 0:00:08]} Qe6 {[%emt 0:00:16]} 28. Nc5 {[%emt 0:
00:04]} Qe7 {[%emt 0:00:02]} 29. Qf3 {[%emt 0:00:08]} Be5 {[%emt 0:00:03]} 30.
b4 {[%emt 0:00:04]} Kg7 {[%emt 0:00:05]} 31. a3 {[%emt 0:00:07]} Bd6 {[%emt 0:
00:06]} 32. Rc2 {[%emt 0:00:03]} Ra8 {[%emt 0:00:18]} 33. Nb3 {[%emt 0:00:05]}
Rac8 {[%emt 0:00:11]} 34. Rbc1 {[%emt 0:00:01]} Qd7 {[%emt 0:00:09]} 35. Qe2 {
[%emt 0:00:19]} Qf5 {[%emt 0:00:03]} 36. Qf3 {[%emt 0:00:04]} Qd7 {[%emt 0:00:
03]} 37. Nd4 {[%emt 0:00:09]} c5 {[%emt 0:00:06]} 38. bxc5 {[%emt 0:00:01]}
Rxc5 {[%emt 0:00:01]} 39. Rxc5 {[%emt 0:00:03]} Rxc5 {[%emt 0:00:01]} 40. Rxc5
{[%emt 0:00:16]} Bxc5 {[%emt 0:00:01]} 41. a4 {[%emt 0:00:08]} a5 {[%emt 0:00:
01]} 42. Nb5 {[%emt 0:00:03]} Bb4 {[%emt 0:00:06]} 43. Qf4 {[%emt 0:00:02]} Qe6
{[%emt 0:00:02]} 44. Qd4+ {[%emt 0:00:01]} Kh7 {[%emt 0:00:03]} 45. Nc7 {
[%emt 0:00:02]} Qe4+ {[%emt 0:00:01]} 46. Kg1 {[%emt 0:00:14]} Qxd4 {[%emt 0:
00:01]} 47. exd4 {[%emt 0:00:01]} Bc3 {[%emt 0:00:01]} 48. Nb5 {[%emt 0:00:05]}
Bb4 {[%emt 0:00:04]} 49. Kg2 {[%emt 0:00:01]} Kg7 {[%emt 0:00:01]} 50. Nc7 {
[%emt 0:00:03]} Bc3 {[%emt 0:00:01]} 51. Nb5 {[%emt 0:00:01]} Bb2 {[%emt 0:00:
02]} 52. Kf3 {[%emt 0:00:01]} Kf8 {[%emt 0:00:01]} 53. Kf4 {[%emt 0:00:01]} f6
{[%emt 0:00:03]} 54. Ke3 {[%emt 0:00:03]} Ke7 {[%emt 0:00:03]} 55. Kd3 {
[%emt 0:00:01]} Bc1 {[%emt 0:00:02]} 56. Nc3 {[%emt 0:00:01]} Kd6 {[%emt 0:00:
02]} 57. Ne2 {[%emt 0:00:02]} Bh6 {[%emt 0:00:01]} 58. Nc3 {[%emt 0:00:01]} g5
{[%emt 0:00:02]} 59. Ne2 {[%emt 0:00:07]} Ke6 {[%emt 0:00:03]} 60. Kc3 {
[%emt 0:00:03]} Kf5 {[%emt 0:00:02]} 61. f3 {[%emt 0:00:01]} Bf8 {[%emt 0:00:
04]} 62. Kd3 {[%emt 0:00:02]} Bd6 {[%emt 0:00:01]} 63. Ke3 {[%emt 0:00:01]} Bb4
{[%emt 0:00:01]} 64. f4 {[%emt 0:00:03]} 0-1

[Event "FIDE Women World Blitz 2021"]
[Site "Warsaw"]
[Date "2021.12.29"]
[Round "8.10"]
[White "Rudzinska, Michalina"]
[Black "Kubicka, Anna"]
[Result "0-1"]
[ECO "B15"]
[WhiteElo "1832"]
[BlackElo "2273"]
[Annotator "NA"]
[PlyCount "113"]
[EventDate "2021.12.29"]
[EventType "swiss"]
[EventCountry "POL"]
[Tiebreak "Cut1 Buchholz"]
[SourceTitle "playchess.com"]
[Source "ChessBase"]
[SourceQuality "1"]
[TimeControl "180+2"]

1. e4 {[%emt 0:00:01]} c6 {[%emt 0:00:01]} 2. d4 {[%emt 0:00:02]} d5 {[%emt 0:
00:01]} 3. Nc3 {[%emt 0:00:01]} dxe4 {[%emt 0:00:01]} 4. Nxe4 {[%emt 0:00:01]}
Nf6 {[%emt 0:00:02]} 5. Nxf6+ {[%emt 0:00:02]} exf6 {[%emt 0:00:01]} 6. c3 {
[%emt 0:00:01]} Bd6 {[%emt 0:00:01]} 7. Bd3 {[%emt 0:00:01]} O-O {[%emt 0:00:
02]} 8. Ne2 {[%emt 0:00:02]} Re8 {[%emt 0:00:01]} 9. O-O {[%emt 0:00:01]} Nd7 {
[%emt 0:00:01]} 10. Bf4 {[%emt 0:00:02]} Nf8 {[%emt 0:00:10]} 11. Bxd6 {
[%emt 0:00:02]} Qxd6 {[%emt 0:00:03]} 12. Ng3 {[%emt 0:00:02]} Qf4 {[%emt 0:00:
11]} 13. Qc2 {[%emt 0:00:15]} Be6 {[%emt 0:00:22]} 14. Rfe1 {[%emt 0:00:02]}
Ng6 {[%emt 0:00:19]} 15. Re3 {[%emt 0:00:08]} Bd5 {[%emt 0:00:08]} 16. Rae1 {
[%emt 0:00:02]} Rxe3 {[%emt 0:00:04]} 17. fxe3 {[%emt 0:00:08]} Qg5 {[%emt 0:
00:22]} 18. e4 {[%emt 0:00:18]} Be6 {[%emt 0:00:01]} 19. c4 {[%emt 0:00:15]}
Nf4 {[%emt 0:00:12]} 20. d5 {[%emt 0:00:06]} Bd7 {[%emt 0:00:04]} 21. Bf1 {
[%emt 0:00:16]} Re8 {[%emt 0:00:02]} 22. Qf2 {[%emt 0:00:01]} b6 {[%emt 0:00:
17]} 23. b4 {[%emt 0:00:27]} Qe5 {[%emt 0:00:06]} 24. Rd1 {[%emt 0:00:24]} h5 {
[%emt 0:00:08]} 25. Qd4 {[%emt 0:00:17]} h4 {[%emt 0:00:07]} 26. Qxe5 {[%emt 0:
00:11]} Rxe5 {[%emt 0:00:03]} 27. Nf5 {[%emt 0:00:08]} Bxf5 {[%emt 0:00:15]}
28. dxc6 {[%emt 0:00:04]} Rxe4 {[%emt 0:00:18]} 29. c7 {[%emt 0:00:09]} Re8 {
[%emt 0:00:12]} 30. Rd8 {[%emt 0:00:02]} Kf8 {[%emt 0:00:00]} 31. Rd4 {[%emt 0:
00:18]} Ne6 {[%emt 0:00:07]} 32. Rxh4 {[%emt 0:00:02]} Nxc7 {[%emt 0:00:01]}
33. c5 {[%emt 0:00:06]} bxc5 {[%emt 0:00:02]} 34. bxc5 {[%emt 0:00:01]} Ne6 {
[%emt 0:00:01]} 35. c6 {[%emt 0:00:05]} Rc8 {[%emt 0:00:04]} 36. Rc4 {[%emt 0:
00:02]} Nd8 {[%emt 0:00:06]} 37. Rc5 {[%emt 0:00:04]} g6 {[%emt 0:00:07]} 38.
Bb5 {[%emt 0:00:02]} Rc7 {[%emt 0:00:01]} 39. a4 {[%emt 0:00:05]} Be4 {[%emt 0:
00:04]} 40. Rc4 {[%emt 0:00:02]} Bxc6 {[%emt 0:00:02]} 41. Rd4 {[%emt 0:00:01]}
Ke7 {[%emt 0:00:02]} 42. Bxc6 {[%emt 0:00:03]} Nxc6 {[%emt 0:00:01]} 43. Rc4 {
[%emt 0:00:01]} Kd6 {[%emt 0:00:01]} 44. Rh4 {[%emt 0:00:02]} Rb7 {[%emt 0:00:
04]} 45. Rh7 {[%emt 0:00:02]} Ke6 {[%emt 0:00:00]} 46. Rh4 {[%emt 0:00:02]} Rb4
{[%emt 0:00:01]} 47. Rh8 {[%emt 0:00:02]} Rxa4 {[%emt 0:00:02]} 48. Rc8 {
[%emt 0:00:02]} Ne5 {[%emt 0:00:02]} 49. h3 {[%emt 0:00:03]} f5 {[%emt 0:00:03]
} 50. g3 {[%emt 0:00:02]} Ra2 {[%emt 0:00:03]} 51. Rb8 {[%emt 0:00:02]} g5 {
[%emt 0:00:04]} 52. h4 {[%emt 0:00:01]} gxh4 {[%emt 0:00:02]} 53. gxh4 {
[%emt 0:00:02]} f4 {[%emt 0:00:01]} 54. h5 {[%emt 0:00:01]} f3 {[%emt 0:00:01]}
55. h6 {[%emt 0:00:03]} f2+ {[%emt 0:00:01]} 56. Kf1 {[%emt 0:00:02]} Ng4 {
[%emt 0:00:04]} 57. Re8+ {[%emt 0:00:03]} 0-1